bitfinex-derivatives/quotes_SOLF0:USTF0_20250501
["timestamp","ask_amount","ask_price","bid_price","bid_amount"]
[1746077053476,6.7226,148.73,148.7,8.77]
[1746077055675,11.27836252,148.74,148.71,6.7233]
[1746077056774,6.7217,148.75,148.72,6.7228]
[1746077057371,4.55616252,148.78,148.72,4.55616252]
[1746077058376,23.38,148.79,148.7,4.0968]
[1746077058567,4.55616252,148.8,148.75,4.55616252]
[1746077058975,6.7198,148.8,148.76,6.721]
[1746077059273,6.49546252,148.81,148.76,6.721]
[1746077060378,6.7199,148.79,148.76,6.721]
[1746077060981,6.7199,148.79,148.75,11.27766252]
[1746077061980,4.55616252,148.79,148.74,6.7219]
[1746077062176,4.55616252,148.77,148.73,23.36]
[1746077062376,4.55616252,148.75,148.7,25.4063]
[1746077062576,6.7229,148.73,148.7,25.4063]
[1746077063381,6.7229,148.73,148.7,32.1299]
[1746077063582,6.7222,148.74,148.7,32.1299]
[1746077063882,4.55616252,148.75,148.7,25.4063]
[1746077064584,4.55616252,148.75,148.72,6.7227]
[1746077064879,4.55616252,148.75,148.7,25.4063]
[1746077065477,30.4822929,148.78,148.7,25.4063]
[1746077065984,6.7223,148.74,148.7,32.1298]
[1746077068383,6.7226,148.73,148.7,32.1298]
[1746077068586,30.4822929,148.78,148.7,25.4063]
[1746077069586,6.7229,148.73,148.7,25.4063]
[1746077070187,6.7229,148.73,148.7,32.1301]
[1746077071388,6.7222,148.74,148.71,6.7234]
[1746077072186,30.4822929,148.78,148.72,6.7229]
[1746077072887,6.7215,148.76,148.72,6.7229]
[1746077073886,23.36,148.78,148.7,25.4063]
[1746077074082,23.36,148.78,148.71,2.0083]
[1746077074793,30.0805,148.78,148.74,6.7217]
[1746077076793,30.0805,148.78,148.75,6.7215]
[1746077079002,6.7205,148.78,148.75,6.7215]
[1746077080301,6.72,148.79,148.75,6.7215]
[1746077080500,25.2993,148.81,148.74,23.36]
[1746077080906,6.7194,148.8,148.74,23.36]
[1746077081204,6.7194,148.8,148.76,6.7208]
[1746077081404,6.7201,148.79,148.76,6.7208]
[1746077081606,25.2993,148.81,148.75,6.7215]
[1746077082006,6.7202,148.79,148.75,6.7215]
[1746077084212,6.7202,148.79,148.76,6.7212]
[1746077085808,7.1222929,148.79,148.7,2.0463]
[1746077086410,6.722,148.75,148.72,6.723]
[1746077086607,6.722,148.75,148.7,2.0463]
[1746077087211,6.7222,148.74,148.71,6.7233]
[1746077089815,7.1222929,148.79,148.7,2.0463]
[1746077090114,25.2993,148.81,148.7,2.0463]
[1746077090505,25.2993,148.81,148.73,6.7224]
[1746077091214,1.23548027,148.8,148.7,2.0463]
[1746077092117,6.7223,148.74,148.7,8.7697]
[1746077094221,6.7226,148.73,148.7,8.7697]
[1746077096426,6.723,148.72,148.7,2.0463]
[1746077098726,6.7227,148.73,148.7,2.0463]
[1746077100329,2.0108,148.76,148.69,23.36]
[1746077101030,6.7233,148.72,148.69,23.36]
[1746077101428,2.0108,148.76,148.69,23.36]
[1746077102524,6.7233,148.72,148.69,30.0842]
[1746077102731,2.0108,148.76,148.69,23.36]
[1746077103530,6.7228,148.73,148.7,6.7236]
[1746077105330,6.7222,148.74,148.71,6.7234]
[1746077105730,2.0108,148.76,148.69,23.36]
[1746077105932,2.0108,148.76,148.69,30.0843]
[1746077106629,7.1222929,148.74,148.66,32.1295]
[1746077107027,6.7248,148.68,148.66,25.4042]
[1746077111227,6.7252,148.67,148.66,2.0442]
[1746077111438,7.1222929,148.71,148.63,23.36]
[1746077111631,7.1222929,148.68,148.62,1.9684]
[1746077111823,30.4822929,148.68,148.6,23.36]
[1746077112833,6.7273,148.63,148.6,30.0884]
[1746077113035,6.7273,148.63,148.6,23.36]
[1746077113230,6.7273,148.63,148.6,23.32657852]
[1746077114234,6.7273,148.63,148.6,30.05487852]
[1746077114935,6.7275,148.62,148.6,23.32657852]
[1746077115135,30.4822929,148.68,148.6,23.32657852]
[1746077115433,30.4822929,148.68,148.6,30.05497852]
[1746077116035,6.727,148.64,148.6,30.05497852]
[1746077116236,30.4822929,148.68,148.6,23.32657852]
[1746077116635,6.7263,148.65,148.6,23.32657852]
[1746077117434,6.7263,148.65,148.62,6.7274]
[1746077118039,6.7263,148.65,148.57,6.0823]
[1746077118040,30.4822929,148.68,148.57,1.9684]
[1746077118231,7.1222929,148.65,148.57,1.9684]
[1746077118537,30.4822929,148.68,148.57,1.9684]
[1746077118734,30.4822929,148.68,148.57,4.012]
[1746077119638,30.4822929,148.68,148.57,5.966]
[1746077120437,6.7271,148.63,148.57,5.966]
[1746077120736,6.7271,148.63,148.59,6.7285]
[1746077123138,6.7276,148.62,148.59,6.7285]
[1746077125042,6.7272,148.63,148.6,6.7284]
[1746077125641,30.4822929,148.68,148.59,6.7287]
[1746077126142,6.7274,148.63,148.59,6.7287]
[1746077127834,6.7275,148.62,148.59,6.7287]
[1746077128840,6.7272,148.63,148.59,6.7287]
[1746077131043,6.7275,148.62,148.59,6.7287]
[1746077134841,6.728,148.61,148.58,6.7291]
[1746077136744,6.728,148.61,148.59,6.7289]
[1746077136944,6.7277,148.62,148.59,6.7289]
[1746077137646,6.7272,148.63,148.6,6.7282]
[1746077141049,30.4822929,148.68,148.57,5.966]
[1746077142746,6.7264,148.65,148.57,5.966]
[1746077144347,6.7264,148.65,148.61,6.7276]
[1746077144847,6.7264,148.65,148.6,23.36]
[1746077145851,6.7264,148.65,148.62,6.7274]
[1746077146250,6.7264,148.65,148.6,23.36]
[1746077146451,6.7259,148.66,148.6,23.36]
[1746077147146,30.4822929,148.68,148.6,23.36]
[1746077147452,30.4822929,148.68,148.6,30.0883]
[1746077147647,30.4822929,148.68,148.6,23.36]
[1746077148058,30.4822929,148.68,148.61,6.7279]
[1746077148351,30.4822929,148.68,148.6,23.36]
[1746077149253,2.032,148.67,148.6,23.36]
[1746077149448,6.7274,148.63,148.59,6.7288]
[1746077152255,6.7274,148.63,148.57,29.326]
[1746077153455,6.7267,148.64,148.57,29.326]
[1746077153654,30.4822929,148.68,148.57,29.326]
[1746077154048,6.7266,148.65,148.61,6.7277]
[1746077154251,30.4822929,148.68,148.61,6.7277]
[1746077155455,6.7267,148.64,148.61,6.7277]
[1746077157458,6.7264,148.65,148.62,6.7274]
[1746077159160,6.7258,148.66,148.63,6.7269]
[1746077159657,6.7262,148.65,148.63,6.7269]
[1746077159860,6.7262,148.65,148.62,6.7273]
[1746077160455,6.7254,148.67,148.59,23.36]
[1746077160663,6.7254,148.67,148.64,6.7266]
[1746077160857,23.36,148.68,148.59,23.36]
[1746077161057,6.7242,148.7,148.66,6.7254]
[1746077161657,23.36,148.72,148.65,6.7261]
[1746077161961,23.36,148.72,148.64,23.36]
[1746077162163,23.36,148.72,148.65,6.7261]
[1746077163069,7.1222929,148.71,148.64,23.36]
[1746077163563,6.7262,148.65,148.62,1.9807]
[1746077163758,7.1222929,148.68,148.61,6.7278]
[1746077164068,30.4822929,148.68,148.61,6.7278]
[1746077164565,23.36,148.68,148.6,23.36]
[1746077164764,32.5961929,148.71,148.61,2.1204]
[1746077164963,6.7252,148.68,148.61,4.2403]
[1746077165165,6.7252,148.68,148.61,6.18]
[1746077165765,6.7245,148.69,148.61,6.18]
[1746077166154,23.36,148.71,148.61,6.18]
[1746077166359,30.0837,148.71,148.67,6.7251]
[1746077166966,6.7237,148.71,148.68,6.7246]
[1746077167365,6.7237,148.71,148.66,2.0711]
[1746077167563,6.7237,148.71,148.67,6.7251]
[1746077168670,25.4753,148.74,148.66,8.7967]
[1746077168968,7.1222929,148.72,148.65,23.36]
[1746077169366,6.7244,148.69,148.65,23.36]
[1746077170073,6.7241,148.7,148.66,6.7257]
[1746077170272,25.4753,148.74,148.65,23.36]
[1746077170671,6.7235,148.71,148.66,2.0512]
[1746077171271,6.7235,148.71,148.67,6.7251]
[1746077171474,6.7239,148.7,148.67,6.7251]
[1746077171966,6.7239,148.7,148.66,8.7767]
[1746077172162,6.7239,148.7,148.66,6.7255]
[1746077174071,6.7239,148.7,148.67,6.7252]
[1746077174277,6.7236,148.71,148.67,6.7252]
[1746077174777,6.7232,148.72,148.68,6.7248]
[1746077181891,6.7226,148.73,148.65,23.36]
[1746077182089,23.36,148.74,148.66,1.9773]
[1746077182289,30.0823,148.74,148.7,6.7235]
[1746077182483,6.7223,148.74,148.7,6.7235]
[1746077183585,6.7226,148.73,148.69,30.1241]
[1746077184090,7.1222929,148.75,148.69,30.1241]
[1746077185291,6.7228,148.73,148.7,6.7238]
[1746077190396,6.7223,148.74,148.71,6.7234]
[1746077196397,23.4,148.77,148.71,6.7234]
[1746077196704,7.1222929,148.75,148.69,23.4]
[1746077197000,7.1222929,148.75,148.69,30.1241]
[1746077198605,6.7228,148.73,148.69,30.1241]
[1746077199301,6.7228,148.73,148.7,6.7239]
[1746077200399,6.7222,148.74,148.71,6.7234]
[1746077200904,6.7218,148.75,148.72,6.723]
[1746077201103,23.4,148.77,148.69,23.4]
[1746077201400,6.721,148.77,148.73,6.7222]
[1746077201605,6.721,148.77,148.73,23.36]
[1746077202405,6.721,148.77,148.74,6.7218]
[1746077203305,6.7205,148.78,148.74,6.7218]
[1746077206697,6.7205,148.78,148.75,6.7216]
[1746077207097,6.7205,148.78,148.74,6.7219]
[1746077209606,6.7205,148.78,148.75,6.7216]
[1746077209809,6.7205,148.78,148.73,23.36]
[1746077210010,6.7205,148.78,148.74,6.7219]
[1746077210911,6.7207,148.77,148.74,6.7219]
[1746077212613,6.7202,148.79,148.75,6.7214]
[1746077214717,6.7203,148.78,148.75,6.7214]
[1746077217316,23.38,148.8,148.74,1.9701]
[1746077217511,23.38,148.8,148.72,23.34]
[1746077217919,7.1222929,148.78,148.68,2.056]
[1746077218118,7.1222929,148.75,148.69,23.34]
[1746077220314,6.7228,148.73,148.69,23.34]
[1746077220709,6.7235,148.71,148.68,8.7806]
[1746077221122,7.1222929,148.72,148.66,23.34]
[1746077221421,30.4622929,148.72,148.66,23.34]
[1746077222117,30.4622929,148.72,148.63,532.7]
[1746077222322,30.4622929,148.72,148.63,556.04]
[1746077222621,7.1222929,148.69,148.63,23.34]
[1746077222822,7.1222929,148.69,148.65,6.7259]
[1746077222823,6.7251,148.68,148.65,6.7259]
[1746077223024,6.7251,148.68,148.63,23.34]
[1746077223516,6.7251,148.68,148.64,6.7265]
[1746077228924,6.7252,148.67,148.64,6.7265]
[1746077229424,6.725,148.68,148.65,6.7261]
[1746077229817,6.725,148.68,148.63,23.34]
[1746077230025,6.725,148.68,148.64,6.7263]
[1746077230723,6.725,148.68,148.65,6.7261]
[1746077232316,6.7245,148.69,148.63,23.34]
[1746077233626,6.7245,148.69,148.65,6.7257]
[1746077237729,6.725,148.68,148.65,6.7257]
[1746077237930,6.725,148.68,148.63,23.34]
[1746077238830,6.7254,148.67,148.64,6.7266]
[1746077239231,1.9305,148.71,148.63,23.34]
[1746077239431,6.7246,148.69,148.65,6.726]
[1746077240031,6.7246,148.69,148.66,6.7255]
[1746077240333,23.34,148.72,148.63,23.34]
[1746077240730,23.34,148.72,148.64,7.1222929]
[1746077240930,30.4822929,148.75,148.64,7.1222929]
[1746077241228,6.7229,148.73,148.69,6.7241]
[1746077241432,30.4822929,148.75,148.69,6.7241]
[1746077241834,30.4822929,148.75,148.68,6.7245]
[1746077243935,30.4822929,148.75,148.67,30.0851]
[1746077244237,6.7237,148.71,148.67,30.0851]
[1746077245437,6.7241,148.7,148.67,30.0851]
[1746077245637,30.4822929,148.75,148.64,23.36]
[1746077245837,7.1222929,148.72,148.64,23.36]
[1746077247035,6.7241,148.7,148.64,23.36]
[1746077247639,6.7241,148.7,148.66,6.7253]
[1746077251748,6.7245,148.69,148.66,6.7253]
[1746077253545,7.1222929,148.72,148.66,6.7253]
[1746077253751,6.7241,148.7,148.66,6.7253]
[1746077254251,7.1222929,148.72,148.66,6.7253]
[1746077255555,6.7242,148.7,148.66,6.7253]
[1746077256653,6.7242,148.7,148.67,6.7252]
[1746077259353,6.7244,148.69,148.66,6.7255]
[1746077260354,6.7241,148.7,148.67,6.7251]
[1746077263156,6.7241,148.7,148.66,6.7255]
[1746077263558,6.7241,148.7,148.64,23.36]
[1746077264356,6.7241,148.7,148.66,6.7253]
[1746077265459,11.28475327,148.7,148.66,6.7253]
[1746077267258,6.7244,148.69,148.66,6.7253]
[1746077268354,6.7244,148.69,148.65,6.726]
[1746077273258,4.56065327,148.7,148.64,30.0864]
[1746077273467,4.56065327,148.68,148.64,23.36]
[1746077273759,6.7255,148.67,148.64,23.36]
[1746077273963,4.56065327,148.68,148.63,6.7267]
[1746077274451,6.726,148.66,148.63,6.7267]
[1746077275963,4.56065327,148.68,148.64,6.7266]
[1746077276267,4.56065327,148.68,148.62,4.0439]
[1746077276470,11.28575327,148.68,148.62,4.0439]
[1746077278066,11.28575327,148.68,148.64,6.7263]
[1746077279767,6.7253,148.67,148.64,6.7263]
[1746077281970,6.7257,148.66,148.63,6.7269]
[1746077282171,4.56065327,148.66,148.62,2.0613]
[1746077282970,4.56065327,148.67,148.62,6.62195327]
[1746077283169,4.56065327,148.69,148.62,6.62195327]
[1746077283371,4.56065327,148.69,148.62,8.63325327]
[1746077284169,6.7252,148.68,148.65,6.7259]
[1746077285672,6.7252,148.68,148.64,6.7265]
[1746077286574,6.7253,148.67,148.64,6.7265]
[1746077287175,6.726,148.66,148.63,6.727]
[1746077287376,6.726,148.66,148.62,2.0613]
[1746077287377,4.56065327,148.67,148.62,2.0613]
[1746077287674,4.56065327,148.65,148.62,2.0613]
[1746077288473,6.7261,148.66,148.62,2.0613]
[1746077288676,4.56065327,148.67,148.62,6.62195327]
[1746077289173,4.56065327,148.67,148.64,6.7262]
[1746077295077,4.56065327,148.67,148.65,6.7261]
[1746077297279,4.56065327,148.67,148.64,6.7264]
[1746077297980,4.56065327,148.67,148.65,6.7261]
[1746077300184,11.28615327,148.67,148.64,6.7264]
[1746077300482,4.56065327,148.67,148.62,2.0613]
[1746077301182,6.726,148.66,148.63,6.7269]
[1746077302782,11.28605327,148.67,148.63,6.7269]
[1746077302981,11.28605327,148.67,148.64,6.7264]
[1746077303182,4.56065327,148.69,148.62,6.62195327]
[1746077303380,11.28475327,148.7,148.66,6.7253]
[1746077306083,6.7246,148.69,148.66,6.7253]
[1746077306384,6.7246,148.69,148.65,6.726]
[1746077310587,6.7248,148.68,148.65,6.726]
[1746077315295,4.56065327,148.7,148.63,27.92065327]
[1746077315588,4.56065327,148.68,148.63,27.92065327]
[1746077315790,4.56065327,148.68,148.63,23.36]
[1746077316788,6.7253,148.67,148.64,6.7266]
[1746077318392,11.28565327,148.68,148.65,6.7261]
[1746077318591,11.28565327,148.68,148.63,23.36]
[1746077318592,4.56065327,148.68,148.63,27.92065327]
[1746077321291,4.56065327,148.68,148.66,6.7254]
[1746077322896,4.56065327,148.7,148.67,6.7252]
[1746077323094,23.36,148.71,148.65,4.56065327]
[1746077323897,23.36,148.71,148.68,6.7245]
[1746077324696,30.0835,148.71,148.68,6.7245]
[1746077326991,30.0835,148.71,148.67,6.725]
[1746077328107,6.724,148.7,148.67,6.725]
[1746077328603,11.28465327,148.7,148.67,6.725]
[1746077330105,6.7251,148.68,148.64,6.7264]
[1746077330305,11.28575327,148.68,148.64,6.7264]
[1746077331508,11.28575327,148.68,148.65,6.7261]
[1746077332402,6.7251,148.68,148.65,6.7261]
[1746077332905,6.7245,148.69,148.65,6.7261]
[1746077341312,6.7245,148.69,148.66,6.7256]
[1746077341513,23.36,148.71,148.65,4.56065327]
[1746077341704,4.56065327,148.73,148.65,4.56065327]
[1746077342309,6.7237,148.71,148.67,6.7248]
[1746077342507,6.7237,148.71,148.65,4.56065327]
[1746077343217,6.7237,148.71,148.68,6.7248]
[1746077348024,11.28435327,148.71,148.68,6.7248]
[1746077348426,6.7239,148.7,148.67,6.725]
[1746077354427,6.7239,148.7,148.66,30.0655]
[1746077356529,4.56065327,148.69,148.66,23.34]
[1746077356726,4.56065327,148.69,148.65,6.726]
[1746077357122,11.28525327,148.69,148.65,6.726]
[1746077357629,11.28525327,148.69,148.66,6.7257]
[1746077360923,6.7241,148.7,148.67,6.7251]
[1746077361129,4.56065327,148.71,148.65,4.56065327]
[1746077361531,6.7233,148.72,148.68,6.7245]
[1746077362626,4.56065327,148.71,148.67,30.0652]
[1746077362830,4.56065327,148.71,148.67,23.34]
[1746077363038,6.7246,148.69,148.67,23.34]
[1746077363330,6.7246,148.69,148.66,6.7257]
[1746077366131,6.7248,148.68,148.66,6.7257]
[1746077366329,4.56065327,148.69,148.64,23.34]
[1746077366534,4.56065327,148.67,148.64,23.34]
[1746077366734,6.726,148.66,148.64,23.34]
[1746077366934,6.726,148.66,148.62,4.0916]
[1746077367130,4.56065327,148.67,148.62,4.0916]
[1746077367336,4.56065327,148.67,148.62,2.0613]
[1746077367537,6.7264,148.65,148.62,2.0613]
[1746077368837,6.7259,148.66,148.62,8.7887]
[1746077369637,6.7259,148.66,148.63,6.727]
[1746077373639,4.56065327,148.67,148.64,6.7265]
[1746077374143,11.28575327,148.68,148.64,6.7265]
[1746077374538,4.56065327,148.68,148.65,6.7259]
[1746077374741,6.7245,148.69,148.62,6.62195327]
[1746077374943,27.90065327,148.7,148.64,4.56065327]
[1746077375244,34.62475327,148.7,148.66,6.7254]
[1746077376937,27.90065327,148.7,148.67,6.7252]
[1746077377143,6.7236,148.71,148.65,23.34]
[1746077377332,11.28395327,148.72,148.66,4.56065327]
[1746077377539,6.7233,148.72,148.65,23.34]
[1746077378444,6.7233,148.72,148.67,6.7252]
[1746077378746,6.7233,148.72,148.65,23.34]
[1746077379044,6.7233,148.72,148.67,6.7252]
[1746077379344,6.7235,148.71,148.65,23.34]
[1746077379840,6.7235,148.71,148.67,6.7249]
[1746077383648,6.7241,148.7,148.67,6.7249]
[1746077384651,6.7241,148.7,148.65,23.34]
[1746077384652,6.7241,148.7,148.66,6.7256]
[1746077384845,30.46403325,148.73,148.65,23.34]
[1746077385648,6.7251,148.68,148.65,30.0658]
[1746077388952,6.7243,148.7,148.66,6.7256]
[1746077389251,30.46403325,148.73,148.66,6.7256]
[1746077389449,6.7241,148.7,148.66,6.7256]
[1746077389651,23.34,148.73,148.65,23.34]
[1746077390348,6.7236,148.71,148.67,6.7251]
[1746077390953,6.7236,148.71,148.68,6.7247]
[1746077391149,23.34,148.73,148.68,6.7247]
[1746077391150,6.7231,148.72,148.68,6.7247]
[1746077399158,6.7236,148.71,148.68,6.7247]
[1746077402359,6.7232,148.72,148.68,6.7247]
[1746077406362,6.48766893,148.75,148.68,4.55936893]
[1746077406562,6.48766893,148.75,148.69,23.32]
[1746077406870,4.55936893,148.75,148.69,23.32]
[1746077408171,6.7223,148.74,148.71,6.7234]
[1746077408774,11.28116893,148.75,148.71,6.7234]
[1746077409473,6.7218,148.75,148.71,6.7234]
[1746077409676,25.4357,148.79,148.69,30.44096479]
[1746077410167,6.7203,148.78,148.75,6.7216]
[1746077411173,32.1557,148.79,148.75,6.7216]
[1746077413375,6.7204,148.78,148.75,6.7216]
[1746077416678,6.7204,148.78,148.74,6.7219]
[1746077420680,6.7208,148.77,148.74,6.7219]
[1746077420981,25.4357,148.79,148.74,6.7219]
[1746077421181,6.7205,148.78,148.74,6.7219]
[1746077422483,30.04,148.79,148.76,6.7211]
[1746077423383,30.04,148.79,148.75,6.7215]
[1746077423885,6.7204,148.78,148.75,6.7215]
[1746077424186,23.32,148.79,148.74,6.7219]
[1746077424486,30.44096479,148.79,148.71,23.32]
[1746077424686,2.086,148.78,148.71,23.32]
[1746077424887,2.086,148.78,148.72,6.7229]
[1746077425086,2.086,148.78,148.71,23.32]
[1746077425486,4.0434,148.78,148.71,23.32]
[1746077425990,6.7226,148.73,148.71,23.32]
[1746077426187,6.7226,148.73,148.7,6.7238]
[1746077428284,6.7231,148.72,148.69,6.724]
[1746077428486,23.32,148.75,148.68,23.32]
[1746077428691,7.12096479,148.73,148.65,23.32]
[1746077428989,6.7246,148.69,148.65,30.046]
[1746077429188,23.32,148.71,148.65,23.32]
[1746077429486,23.32,148.71,148.66,6.7256]
[1746077429487,6.7242,148.7,148.66,6.7256]
[1746077430189,6.7244,148.69,148.66,6.7256]
[1746077430694,23.32,148.71,148.66,6.7256]
[1746077430992,23.32,148.71,148.65,23.32]
[1746077431292,23.32,148.74,148.65,23.32]
[1746077431491,6.7235,148.71,148.68,6.7247]
[1746077433595,6.7235,148.71,148.67,6.7251]
[1746077442803,6.7239,148.7,148.67,6.7251]
[1746077443001,23.32,148.74,148.66,2.0522]
[1746077443707,23.32,148.74,148.66,8.7778]
[1746077444205,6.7242,148.7,148.66,8.7778]
[1746077445009,6.7245,148.69,148.66,8.7778]
[1746077445808,6.724,148.7,148.67,6.7252]
[1746077446507,6.724,148.7,148.66,8.7777]
[1746077447908,6.7244,148.69,148.66,8.7777]
[1746077448806,6.7244,148.69,148.66,2.0522]
[1746077449609,6.7244,148.69,148.66,8.7778]
[1746077451011,6.7241,148.7,148.66,8.7778]
[1746077452612,6.7241,148.7,148.67,6.7252]
[1746077454716,6.7244,148.69,148.66,8.7777]
[1746077458113,6.7244,148.69,148.67,6.7252]
[1746077459223,6.7244,148.69,148.66,8.7777]
[1746077459916,6.7242,148.7,148.67,6.7252]
[1746077461926,6.7232,148.72,148.68,6.7244]
[1746077462226,6.7232,148.72,148.69,4.5600998]
[1746077462921,6.7232,148.72,148.69,11.2840998]
[1746077463825,6.7227,148.73,148.69,11.2840998]
[1746077464027,6.7227,148.73,148.7,6.7238]
[1746077465630,6.723,148.72,148.7,6.7238]
[1746077466328,6.7227,148.73,148.69,4.5600998]
[1746077466623,6.6745998,148.76,148.69,27.8800998]
[1746077467029,6.7226,148.73,148.7,6.7237]
[1746077470029,6.723,148.72,148.69,34.6042998]
[1746077471125,6.7227,148.73,148.7,6.7239]
[1746077486632,6.7231,148.72,148.7,6.7239]
[1746077486839,6.7231,148.72,148.69,34.6041998]
[1746077487044,6.7231,148.72,148.69,27.8800998]
[1746077487647,6.7227,148.73,148.7,6.7238]
[1746077488548,6.7231,148.72,148.69,30.0442]
[1746077492680,6.7227,148.73,148.7,6.7238]
[1746077499972,4.5600998,148.74,148.69,23.32]
[1746077500879,4.5600998,148.74,148.69,30.0443]
[1746077501560,1.17045607,148.82,148.69,27.8800998]
[1746077501852,4.5600998,148.81,148.73,4.5600998]
[1746077502047,4.5600998,148.81,148.73,27.8600998]
[1746077502246,6.7201,148.79,148.75,6.7214]
[1746077502854,6.7201,148.79,148.76,6.721]
[1746077504955,6.7203,148.78,148.75,6.7214]
[1746077509755,4.5600998,148.79,148.73,23.3]
[1746077509956,4.5600998,148.77,148.73,23.3]
[1746077510256,4.5600998,148.77,148.7,27.8600998]
[1746077510754,4.5600998,148.77,148.72,6.7227]
[1746077512261,6.7216,148.75,148.72,6.7227]
[1746077512463,4.5600998,148.77,148.71,6.7234]
[1746077513364,4.5600998,148.77,148.7,34.5837998]
[1746077513760,4.5600998,148.75,148.7,23.3]
[1746077513961,4.5600998,148.73,148.7,23.3]
[1746077514663,6.7231,148.72,148.7,23.3]
[1746077514852,4.5600998,148.73,148.68,4.5600998]
[1746077515057,4.5600998,148.73,148.67,27.4056]
[1746077516361,6.7234,148.71,148.67,27.4056]
[1746077516563,4.5600998,148.71,148.67,25.3458]
[1746077516764,4.5600998,148.71,148.67,23.34]
[1746077517459,30.46624912,148.74,148.66,2.0522]
[1746077517964,6.7252,148.68,148.64,30.0665]
[1746077518466,6.7257,148.66,148.64,23.34]
[1746077518772,23.34,148.7,148.62,2.0252]
[1746077518954,25.412,148.7,148.62,2.0252]
[1746077520067,25.412,148.7,148.62,8.7525]
[1746077520464,25.412,148.7,148.62,2.0252]
[1746077521169,25.412,148.7,148.63,6.727]
[1746077522169,6.7257,148.66,148.63,6.727]
[1746077523772,6.7257,148.66,148.62,8.7525]
[1746077523973,25.412,148.7,148.62,2.0252]
[1746077524272,7.12624912,148.68,148.62,2.0252]
[1746077524567,6.7264,148.65,148.62,2.0252]
[1746077525068,6.7264,148.65,148.62,8.7526]
[1746077525473,6.7258,148.66,148.62,8.7526]
[1746077525874,7.12624912,148.68,148.62,2.0252]
[1746077526070,7.12624912,148.68,148.6,23.34]
[1746077526370,7.12624912,148.65,148.59,6.7286]
[1746077526570,7.12624912,148.62,148.56,1.9516]
[1746077526769,30.48624912,148.62,148.56,1.9516]
[1746077526972,6.7296,148.58,148.56,1.9516]
[1746077527475,6.7291,148.59,148.56,1.9516]
[1746077529180,6.7294,148.58,148.56,1.9516]
[1746077529375,6.7294,148.58,148.54,6.731]
[1746077530876,30.48624912,148.62,148.54,6.731]
[1746077531284,30.48624912,148.62,148.51,1.9807]
[1746077531894,6.7292,148.59,148.55,6.7303]
[1746077532085,30.48624912,148.62,148.51,9.10694912]
[1746077532589,30.48624912,148.62,148.56,6.7299]
[1746077533392,6.7287,148.6,148.56,6.7299]
[1746077534288,6.7287,148.6,148.54,23.36]
[1746077534492,23.36,148.62,148.54,30.48624912]
[1746077534693,23.36,148.62,148.55,2.1011]
[1746077534891,30.0878,148.62,148.58,6.7291]
[1746077535087,23.36,148.62,148.55,2.1011]
[1746077535289,23.36,148.66,148.56,2.0956]
[1746077535494,6.7262,148.65,148.57,7.12624912]
[1746077535687,6.7262,148.65,148.58,23.36]
[1746077537194,6.7267,148.64,148.58,23.36]
[1746077537993,6.7263,148.65,148.61,6.7275]
[1746077540290,6.7263,148.65,148.62,6.7275]
[1746077540696,23.36,148.66,148.63,6.7267]
[1746077540994,7.12624912,148.68,148.63,6.7267]
[1746077541188,6.7257,148.67,148.63,6.7267]
[1746077541996,6.7257,148.66,148.63,6.7267]
[1746077542198,6.7257,148.66,148.62,6.7274]
[1746077544190,7.12624912,148.68,148.62,6.7274]
[1746077544889,6.7261,148.66,148.62,6.7274]
[1746077545089,6.7261,148.66,148.63,6.727]